lending/lending_fUSD_20240710
["ID","MTS","AMOUNT","RATE_DAILY","PERIOD"]
[331652430,1720605073852,-1127.67,0.00013917,2]
[331652431,1720605073861,-500.0,0.00013917,2]
[331652432,1720605073871,-500.0,0.00013917,2]
[331652433,1720605073880,-688.55,0.00013917,2]
[331652434,1720605073889,-500.0,0.00013917,2]
[331652435,1720605073899,-889.17,0.00013917,2]
[331652436,1720605073908,-500.0,0.00013917,2]
[331652437,1720605073917,-853.5,0.00013917,2]
[331652438,1720605073926,-1661.49,0.00013917,2]
[331652439,1720605073936,-621.87,0.00013917,2]
[331652440,1720605073945,-969.44,0.00013917,2]
[331652441,1720605073955,-500.0,0.00013917,2]
[331652442,1720605073964,-237.12734919,0.00013917,2]
[331652443,1720605073974,-500.0,0.00013917,2]
[331652444,1720605073983,-500.0,0.00013917,2]
[331652445,1720605073992,-706.97,0.00013917,2]
[331652446,1720605074002,-636.3,0.00013917,2]
[331652447,1720605074012,-500.0,0.00013917,2]
[331652448,1720605074021,-500.0,0.00013917,2]
[331652449,1720605074031,-500.0,0.00013917,2]
[331652450,1720605074040,-767.29,0.00013917,2]
[331652451,1720605074049,-562.0,0.00013917,2]
[331652452,1720605074059,-818.65,0.00013917,2]
[331652453,1720605074068,-636.74,0.00013917,2]
[331652454,1720605074078,-500.0,0.00013917,2]
[331652455,1720605074087,-850.97,0.00013917,2]
[331652456,1720605074097,-1162.05,0.00013917,2]
[331652457,1720605074107,-500.0,0.00013917,2]
[331652458,1720605074116,-591.32,0.00013917,2]
[331652459,1720605074126,-433.21866668,0.00013917,2]
[331652460,1720605074135,-500.0,0.00013917,2]
[331652461,1720605074145,-500.0,0.00013917,2]
[331652462,1720605074154,-500.0,0.00013917,2]
[331652463,1720605074164,-902.1,0.00013917,2]
[331652464,1720605074173,-538.09,0.00013917,2]
[331652465,1720605074183,-868.99,0.00013917,2]
[331652466,1720605074192,-500.0,0.00013917,2]
[331652467,1720605074202,-766.75,0.00013917,2]
[331652468,1720605074211,-576.02,0.00013917,2]
[331652469,1720605074220,-500.0,0.00013917,2]
[331652470,1720605074230,-1193.48,0.00013917,2]
[331652471,1720605074240,-507.56,0.00013917,2]
[331652472,1720605074249,-500.0,0.00013917,2]
[331652473,1720605074259,-500.0,0.00013917,2]
[331652474,1720605074269,-842.22,0.00013917,2]
[331652475,1720605074279,-732.11,0.00013917,2]
[331652476,1720605074288,-500.0,0.00013917,2]
[331652477,1720605074298,-500.0,0.00013917,2]
[331652478,1720605074307,-1021.16,0.00013917,2]
[331652479,1720605074317,-2170.18,0.00013917,2]
[331652480,1720605074327,-1234.09,0.00013917,2]
[331652481,1720605074336,-642.04,0.00013917,2]
[331652482,1720605074346,-676.92,0.00013917,2]
[331652483,1720605074355,-500.0,0.00013917,2]
[331652484,1720605074364,-500.0,0.00013917,2]
[331652485,1720605074374,-500.0,0.00013917,2]
[331652486,1720605074383,-1209.88,0.00013917,2]
[331652487,1720605074393,-752.3,0.00013917,2]
[331652488,1720605074403,-1202.0,0.00013917,2]
[331652489,1720605074413,-500.0,0.00013917,2]
[331652490,1720605074423,-500.0,0.00013917,2]
[331652491,1720605074432,-1565.99,0.00013917,2]
[331652492,1720605074442,-500.0,0.00013917,2]
[331652493,1720605074451,-500.0,0.00013917,2]
[331652494,1720605074461,-500.0,0.00013917,2]
[331652495,1720605074471,-500.0,0.00013917,2]
[331652496,1720605074480,-500.0,0.00013917,2]
[331652497,1720605074491,-500.0,0.00013917,2]
[331652498,1720605074500,-1474.53,0.00013917,2]
[331652499,1720605074510,-913.86,0.00013917,2]
[331652500,1720605074520,-663.74,0.00013917,2]
[331652501,1720605074530,-500.0,0.00013917,2]
[331652502,1720605074541,-745.7,0.00013917,2]
[331652503,1720605074550,-500.0,0.00013917,2]
[331652504,1720605074560,-500.0,0.00013917,2]
[331652505,1720605074569,-500.0,0.00013917,2]
[331652506,1720605074578,-867.31,0.00013917,2]
[331652507,1720605074587,-1340.01,0.00013917,2]
[331652508,1720605074597,-782.61,0.00013917,2]
[331652509,1720605074607,-804.29,0.00013917,2]
[331652510,1720605074617,-1436.94,0.00013917,2]
[331652511,1720605074626,-500.0,0.00013917,2]
[331652512,1720605074635,-500.0,0.00013917,2]
[331652513,1720605074644,-870.61,0.00013917,2]
[331652514,1720605074654,-1436.15,0.00013917,2]
[331652515,1720605074664,-514.71392542,0.00013917,2]
[331652516,1720605074674,-500.0,0.00013917,2]
[331652517,1720605074683,-649.98,0.00013917,2]
[331652518,1720605074693,-500.0,0.00013917,2]
[331652519,1720605074702,-500.0,0.00013917,2]
[331652520,1720605074711,-500.0,0.00013917,2]
[331652521,1720605074721,-551.22789213,0.00013917,2]
[331652522,1720605074730,-1443.66,0.00013917,2]
[331652523,1720605074739,-1092.49,0.00013917,2]
[331652524,1720605074749,-1671.66,0.00013917,2]
[331652525,1720605074759,-500.0,0.00013917,2]
[331652526,1720605074768,-1450.59,0.00013917,2]
[331652527,1720605074778,-500.0,0.00013917,2]
[331652528,1720605074788,-500.0,0.00013917,2]
[331652529,1720605074798,-813.67,0.00013917,2]
[331652530,1720605074807,-606.93,0.00013917,2]
[331652531,1720605074817,-500.0,0.00013917,2]
[331652532,1720605074827,-500.0,0.00013917,2]
[331652533,1720605074837,-500.0,0.00013917,2]
[331652534,1720605074846,-500.0,0.00013917,2]
[331652535,1720605074855,-1360.4,0.00013917,2]
[331652536,1720605074865,-871.89,0.00013917,2]
[331652537,1720605074875,-915.68,0.00013917,2]
[331652538,1720605074885,-500.0,0.00013917,2]
[331652539,1720605074894,-500.0,0.00013917,2]
[331652540,1720605074903,-500.0,0.00013917,2]
[331652541,1720605074913,-596.91075553,0.00013917,2]
[331652542,1720605074922,-500.0,0.00013917,2]
[331652543,1720605074932,-500.0,0.00013917,2]
[331652544,1720605074941,-500.0,0.00013917,2]
[331652545,1720605074951,-500.0,0.00013917,2]
[331652546,1720605074961,-976.42,0.00013917,2]
[331652547,1720605074970,-500.0,0.00013917,2]
[331652548,1720605074980,-636.58,0.00013917,2]
[331652549,1720605074989,-500.0,0.00013917,2]
[331652550,1720605074999,-1002.05,0.00013917,2]
[331652551,1720605075009,-500.0,0.00013917,2]
[331652552,1720605075019,-500.0,0.00013917,2]
[331652553,1720605075028,-991.76,0.00013917,2]
[331652554,1720605075039,-500.0,0.00013917,2]
[331652555,1720605075049,-160.08618905,0.00013917,2]
[331652556,1720605075059,-553.22,0.00013917,2]
[331652557,1720605075068,-562.34,0.00013917,2]
[331652558,1720605075078,-500.0,0.00013917,2]
[331652559,1720605075087,-500.0,0.00013917,2]
[331652560,1720605075097,-543.73,0.00013917,2]
[331652561,1720605075106,-500.0,0.00013917,2]
[331652562,1720605075116,-500.0,0.00013917,2]
[331652563,1720605075125,-616.17,0.00013917,2]
[331652564,1720605075135,-500.0,0.00013917,2]
[331652565,1720605075144,-500.0,0.00013917,2]
[331652566,1720605075154,-500.0,0.00013917,2]
[331652567,1720605075163,-1586.1,0.00013917,2]
[331652568,1720605075172,-1006.17,0.00013917,2]
[331652569,1720605075182,-500.0,0.00013917,2]
[331652570,1720605075191,-500.0,0.00013917,2]
[331652571,1720605075200,-500.0,0.00013917,2]
[331652572,1720605075210,-513.37,0.00013917,2]
[331652573,1720605075219,-701.68,0.00013917,2]
[331652574,1720605075228,-500.0,0.00013917,2]
[331652575,1720605075368,-554.38,0.00013917,2]
[331652576,1720605075390,-1108.96,0.00013917,2]
[331652577,1720605075401,-500.0,0.00013917,2]
[331652578,1720605075412,-500.0,0.00013917,2]
[331652579,1720605075422,-500.0,0.00013917,2]
[331652580,1720605075431,-1197.21,0.00013917,2]
[331652581,1720605075441,-521.59,0.00013917,2]
[331652582,1720605075451,-500.0,0.00013917,2]
[331652583,1720605075461,-500.0,0.00013917,2]
[331652584,1720605075470,-500.0,0.00013917,2]
[331652585,1720605075480,-500.0,0.00013917,2]
[331652586,1720605075490,-999.22,0.00013917,2]
[331652587,1720605075502,-500.0,0.00013917,2]
[331652588,1720605075516,-500.0,0.00013917,2]
[331652589,1720605075527,-536.89,0.00013917,2]
[331652590,1720605075539,-1000.0,0.00013917,2]
[331652591,1720605075549,-500.0,0.00013917,2]
[331652592,1720605075559,-500.0,0.00013917,2]
[331652593,1720605075568,-500.0,0.00013917,2]
[331652594,1720605075578,-544.05697858,0.00013917,2]
[331652595,1720605075587,-500.0,0.00013917,2]
[331652596,1720605075598,-500.0,0.00013917,2]
[331652597,1720605075607,-500.0,0.00013917,2]
[331652598,1720605075616,-792.38,0.00013917,2]
[331652599,1720605075626,-565.73,0.00013917,2]
[331652600,1720605075635,-500.0,0.00013917,2]
[331652601,1720605075645,-500.0,0.00013917,2]
[331652602,1720605075654,-528.91,0.00013917,2]
[331652603,1720605075663,-500.0,0.00013917,2]
[331652604,1720605075673,-500.0,0.00013917,2]
[331652605,1720605075683,-500.0,0.00013917,2]
[331652606,1720605075693,-500.0,0.00013917,2]
[331652607,1720605075702,-812.24,0.00013917,2]
[331652608,1720605075712,-500.0,0.00013917,2]
[331652609,1720605075721,-500.0,0.00013917,2]
[331652610,1720605075731,-1231.83,0.00013917,2]
[331652611,1720605075741,-500.0,0.00013917,2]
[331652612,1720605075750,-1674.57,0.00013917,2]
[331652613,1720605075760,-607.47,0.00013917,2]
[331652614,1720605075769,-500.0,0.00013917,2]
[331652615,1720605075779,-1279.24,0.00013917,2]
[331652616,1720605075789,-651.76,0.00013917,2]
[331652617,1720605075798,-1566.61,0.00013917,2]
[331652618,1720605075807,-604.38,0.00013917,2]
[331652619,1720605075817,-500.0,0.00013917,2]
[331652620,1720605075826,-571.14,0.00013917,2]
[331652621,1720605075836,-754.22,0.00013917,2]
[331652622,1720605075845,-1153.57,0.00013917,2]
[331652623,1720605075854,-764.39,0.00013917,2]
[331652624,1720605075863,-500.0,0.00013917,2]
[331652625,1720605075872,-500.0,0.00013917,2]
[331652626,1720605075882,-500.0,0.00013917,2]
[331652627,1720605075891,-500.0,0.00013917,2]
[331652628,1720605075900,-500.0,0.00013917,2]
[331652629,1720605075909,-500.0,0.00013917,2]
[331652630,1720605075921,-1210.27,0.00013917,2]
[331652631,1720605075931,-590.75,0.00013917,2]
[331652632,1720605075941,-500.0,0.00013917,2]
[331652633,1720605075951,-1511.87,0.00013917,2]
[331652634,1720605075961,-500.0,0.00013917,2]
[331652635,1720605075970,-500.0,0.00013917,2]
[331652636,1720605075981,-971.13,0.00013917,2]
[331652637,1720605075990,-1120.01,0.00013917,2]
[331652638,1720605075999,-500.0,0.00013917,2]
[331652639,1720605076009,-787.47,0.00013917,2]
[331652640,1720605076019,-500.0,0.00013917,2]
[331652641,1720605076028,-500.0,0.00013917,2]
[331652642,1720605076037,-500.0,0.00013917,2]
[331652643,1720605076047,-528.69,0.00013917,2]
[331652644,1720605076056,-500.0,0.00013917,2]
[331652645,1720605076065,-789.45,0.00013917,2]
[331652646,1720605076075,-500.0,0.00013917,2]
[331652647,1720605076084,-1000.46,0.00013917,2]
[331652648,1720605076094,-500.0,0.00013917,2]
[331652649,1720605076103,-500.0,0.00013917,2]
[331652650,1720605076112,-500.0,0.00013917,2]
[331652651,1720605076122,-1569.65,0.00013917,2]
[331652652,1720605076131,-500.0,0.00013917,2]
[331652653,1720605076141,-616.93,0.00013917,2]
[331652654,1720605076152,-542.3,0.00013917,2]
[331652655,1720605076162,-500.0,0.00013917,2]
[331652656,1720605076171,-948.91,0.00013917,2]
[331652657,1720605076180,-500.0,0.00013917,2]
[331652658,1720605076190,-643.36,0.00013917,2]
[331652659,1720605076199,-643.43,0.00013917,2]
[331652660,1720605076209,-500.0,0.00013917,2]
[331652661,1720605076218,-500.0,0.00013917,2]
[331652662,1720605076228,-531.02,0.00013917,2]
[331652663,1720605076237,-952.15,0.00013917,2]
[331652664,1720605076247,-1377.05,0.00013917,2]
[331652665,1720605076256,-500.0,0.00013917,2]
[331652666,1720605076267,-500.0,0.00013917,2]
[331652667,1720605076276,-503.38,0.00013917,2]
[331652668,1720605076286,-1702.42,0.00013917,2]
[331652669,1720605076295,-1506.19,0.00013917,2]
[331652670,1720605076304,-500.0,0.00013917,2]
[331652671,1720605076314,-500.0,0.00013917,2]
[331652672,1720605076323,-500.0,0.00013917,2]
[331652673,1720605076333,-656.03,0.00013917,2]
[331652674,1720605076342,-1039.74,0.00013917,2]
[331652675,1720605076351,-717.52,0.00013917,2]
[331652676,1720605076361,-859.44,0.00013917,2]
[331652677,1720605076371,-500.0,0.00013917,2]
[331652678,1720605076380,-858.09,0.00013917,2]
[331652679,1720605076390,-747.51,0.00013917,2]
[331652680,1720605076399,-519.47975443,0.00013917,2]
[331652681,1720605076409,-500.0,0.00013917,2]
[331652682,1720605076418,-1077.14,0.00013917,2]
[331652683,1720605076427,-877.95,0.00013917,2]
[331652684,1720605076436,-1001.11,0.00013917,2]
[331652685,1720605076446,-501.85,0.00013917,2]
[331652686,1720605076455,-500.0,0.00013917,2]
[331652687,1720605076464,-500.0,0.00013917,2]
[331652688,1720605076474,-298.70306059,0.00013917,2]
[331652689,1720605076484,-500.0,0.00013917,2]
[331652690,1720605076495,-580.78,0.00013917,2]
[331652691,1720605076505,-805.57,0.00013917,2]
[331652692,1720605076515,-1140.04,0.00013917,2]
[331652693,1720605076524,-995.6,0.00013917,2]
[331652694,1720605076535,-500.0,0.00013917,2]
[331652695,1720605076545,-500.0,0.00013917,2]
[331652696,1720605076555,-568.7,0.00013917,2]
[331652697,1720605076564,-787.74,0.00013917,2]
[331652698,1720605076574,-500.0,0.00013917,2]
[331652699,1720605076583,-500.0,0.00013917,2]
[331652700,1720605076593,-500.0,0.00013917,2]
[331652701,1720605076603,-500.0,0.00013917,2]
[331652702,1720605076612,-500.0,0.00013917,2]
[331652703,1720605076623,-879.79,0.00013917,2]
[331652704,1720605076634,-500.0,0.00013917,2]
[331652705,1720605076645,-1136.87,0.00013917,2]
[331652706,1720605076655,-500.0,0.00013917,2]
[331652707,1720605076665,-500.0,0.00013917,2]
[331652708,1720605076675,-500.0,0.00013917,2]
[331652709,1720605076684,-500.0,0.00013917,2]
[331652710,1720605076693,-710.38,0.00013917,2]
[331652711,1720605076703,-500.0,0.00013917,2]
[331652712,1720605076712,-500.0,0.00013917,2]
[331652713,1720605076722,-500.0,0.00013917,2]
[331652714,1720605076732,-500.0,0.00013917,2]
[331652715,1720605076742,-535.05,0.00013917,2]
[331652716,1720605076751,-500.0,0.00013917,2]
[331652717,1720605076761,-500.0,0.00013917,2]
[331652718,1720605076771,-1306.84,0.00013917,2]
[331652719,1720605076780,-929.55,0.00013917,2]
[331652720,1720605076790,-500.0,0.00013917,2]
[331652721,1720605076800,-500.0,0.00013917,2]
[331652722,1720605076809,-500.0,0.00013917,2]
[331652723,1720605076819,-1630.76,0.00013917,2]
[331652724,1720605076829,-500.0,0.00013917,2]
[331652725,1720605076838,-500.0,0.00013917,2]
[331652726,1720605076848,-1131.4,0.00013917,2]
[331652727,1720605076857,-500.0,0.00013917,2]
[331652728,1720605076866,-1328.38,0.00013917,2]
[331652729,1720605076875,-597.83,0.00013917,2]
[331652730,1720605076884,-500.0,0.00013917,2]
[331652731,1720605076893,-500.0,0.00013917,2]
[331652732,1720605076904,-767.37,0.00013917,2]
[331652733,1720605076914,-966.15,0.00013917,2]
[331652734,1720605076924,-500.0,0.00013917,2]
[331652735,1720605076935,-646.86,0.00013917,2]
[331652736,1720605076946,-874.81,0.00013917,2]
[331652737,1720605076956,-500.0,0.00013917,2]
[331652738,1720605076966,-1232.56,0.00013917,2]
[331652739,1720605076975,-1021.55,0.00013917,2]
[331652740,1720605076984,-500.0,0.00013917,2]
[331652741,1720605076993,-849.62,0.00013917,2]
[331652742,1720605077003,-500.0,0.00013917,2]
[331652743,1720605077013,-980.47,0.00013917,2]
[331652744,1720605077023,-500.0,0.00013917,2]
[331652745,1720605077032,-500.0,0.00013917,2]
[331652746,1720605077042,-500.0,0.00013917,2]
[331652747,1720605077051,-907.24,0.00013917,2]
[331652748,1720605077060,-680.06,0.00013917,2]
[331652749,1720605077069,-1023.58,0.00013917,2]
[331652750,1720605077079,-979.79,0.00013917,2]
[331652751,1720605077090,-500.0,0.00013917,2]
[331652752,1720605077099,-1215.54,0.00013917,2]
[331652753,1720605077108,-1158.89,0.00013917,2]
[331652754,1720605077118,-665.03,0.00013917,2]
[331652755,1720605077128,-500.0,0.00013917,2]
[331652756,1720605077139,-500.0,0.00013917,2]
[331652757,1720605077149,-637.3,0.00013917,2]
[331652758,1720605077160,-1369.86,0.00013917,2]
[331652759,1720605077170,-500.0,0.00013917,2]
[331652760,1720605077179,-500.0,0.00013917,2]
[331652761,1720605077189,-531.3,0.00013917,2]
[331652762,1720605077199,-500.0,0.00013917,2]
[331652763,1720605077208,-555.33,0.00013917,2]
[331652764,1720605077217,-814.19,0.00013917,2]
[331652765,1720605077226,-500.0,0.00013917,2]
[331652766,1720605077236,-528.35,0.00013917,2]
[331652767,1720605077246,-5795.8,0.00013917,2]
[331652768,1720605077256,-500.0,0.00013917,2]
[331652769,1720605077266,-1519.46,0.00013917,2]
[331652770,1720605077275,-554.32,0.00013917,2]
[331652771,1720605077284,-500.0,0.00013917,2]
[331652772,1720605077294,-477.05878448,0.00013917,2]
[331652773,1720605077304,-500.0,0.00013917,2]
[331652774,1720605077313,-500.0,0.00013917,2]
[331652775,1720605077323,-500.0,0.00013917,2]
[331652776,1720605077333,-772.77,0.00013917,2]
[331652777,1720605077342,-2059.7,0.00013917,2]
[331652778,1720605077352,-500.0,0.00013917,2]
[331652779,1720605077362,-1145.38,0.00013917,2]
[331652780,1720605077371,-500.0,0.00013917,2]
[331652781,1720605077380,-500.0,0.00013917,2]
[331652782,1720605077390,-1181.31,0.00013917,2]
[331652783,1720605077399,-933.37,0.00013917,2]
[331652784,1720605077408,-500.0,0.00013917,2]
[331652785,1720605077418,-500.0,0.00013917,2]
[331652786,1720605077427,-500.0,0.00013917,2]
[331652787,1720605077436,-1114.96,0.00013917,2]
[331652788,1720605077447,-1444.38,0.00013917,2]
[331652789,1720605077456,-500.0,0.00013917,2]
[331652790,1720605077466,-1590.89,0.00013917,2]
[331652791,1720605077475,-500.0,0.00013917,2]
[331652792,1720605077484,-500.0,0.00013917,2]
[331652793,1720605077790,-500.0,0.00013917,2]
[331652794,1720605077815,-652.36,0.00013917,2]
[331652795,1720605077824,-517.97,0.00013917,2]
[331652796,1720605077834,-612.31,0.00013917,2]
[331652797,1720605077843,-500.0,0.00013917,2]
[331652798,1720605077853,-511.26,0.00013917,2]
[331652799,1720605077862,-713.22,0.00013917,2]
[331652800,1720605077872,-751.3,0.00013917,2]
[331652801,1720605077881,-151.0,0.00013917,2]
[331652802,1720605077891,-564.35,0.00013917,2]
[331652803,1720605077900,-500.0,0.00013917,2]
[331652804,1720605077910,-500.0,0.00013917,2]
[331652805,1720605077920,-500.0,0.00013917,2]
[331652806,1720605077929,-1412.68,0.00013917,2]
[331652807,1720605077939,-500.0,0.00013917,2]
[331652808,1720605077948,-999.09,0.00013917,2]
[331652809,1720605077958,-833.45,0.00013917,2]
[331652810,1720605077968,-601.04,0.00013917,2]
[331652811,1720605077977,-741.36,0.00013917,2]
[331652812,1720605077987,-866.04,0.00013917,2]
[331652813,1720605077997,-1547.93,0.00013917,2]
[331652814,1720605078006,-500.0,0.00013917,2]
[331652815,1720605078016,-500.0,0.00013917,2]
[331652816,1720605078026,-500.0,0.00013917,2]
[331652817,1720605078035,-789.08,0.00013917,2]
[331652818,1720605078044,-3440.96,0.00013917,2]
[331652819,1720605078053,-500.0,0.00013917,2]
[331652820,1720605078063,-1543.63,0.00013917,2]
[331652821,1720605078073,-500.0,0.00013917,2]
[331652822,1720605078082,-842.42,0.00013917,2]
[331652823,1720605078091,-916.54,0.00013917,2]
[331652824,1720605078100,-500.0,0.00013917,2]
[331652825,1720605078109,-500.0,0.00013917,2]
[331652826,1720605078119,-278.79418587,0.00013917,2]
[331652827,1720605078129,-5458.33,0.00013917,2]
[331652828,1720605078138,-557.85,0.00013917,2]
[331652829,1720605078148,-500.0,0.00013917,2]
[331652830,1720605078157,-715.29,0.00013917,2]
[331652831,1720605078166,-500.0,0.00013917,2]
[331652832,1720605078176,-906.89,0.00013917,2]
[331652833,1720605078185,-999.33,0.00013917,2]
[331652834,1720605078195,-500.0,0.00013917,2]
[331652835,1720605078205,-614.57,0.00013917,2]
[331652836,1720605078215,-1152.64,0.00013917,2]
[331652837,1720605078224,-815.67,0.00013917,2]
[331652838,1720605078234,-553.89,0.00013917,2]
[331652839,1720605078244,-772.33,0.00013917,2]
[331652840,1720605078254,-919.61,0.00013917,2]
[331652841,1720605078264,-500.0,0.00013917,2]
[331652842,1720605078273,-500.0,0.00013917,2]
[331652843,1720605078283,-500.0,0.00013917,2]
[331652844,1720605078292,-500.0,0.00013917,2]
[331652845,1720605078302,-500.0,0.00013917,2]
[331652846,1720605078311,-1438.4,0.00013917,2]
[331652847,1720605078321,-500.0,0.00013917,2]
[331652848,1720605078331,-621.39,0.00013917,2]
[331652849,1720605078340,-545.75,0.00013917,2]
[331652850,1720605078350,-658.54,0.00013917,2]
[331652851,1720605078359,-500.0,0.00013917,2]
[331652852,1720605078369,-666.45,0.00013917,2]
[331652853,1720605078379,-225.97950053,0.00013917,2]
[331652854,1720605078388,-500.0,0.00013917,2]
[331652855,1720605078398,-500.0,0.00013917,2]
[331652856,1720605078407,-500.0,0.00013917,2]
[331652857,1720605078417,-871.11,0.00013917,2]
[331652858,1720605078427,-2861.5,0.00013917,2]
[331652859,1720605078436,-500.0,0.00013917,2]
[331652860,1720605078446,-1111.47,0.00013917,2]
[331652861,1720605078455,-952.72,0.00013917,2]
[331652862,1720605078464,-1042.92,0.00013917,2]
[331652863,1720605078473,-682.79,0.00013917,2]
[331652864,1720605078483,-500.0,0.00013917,2]
[331652865,1720605078493,-1266.97,0.00013917,2]
[331652866,1720605078504,-500.0,0.00013917,2]
[331652867,1720605078517,-500.0,0.00013917,2]
[331652868,1720605078526,-1819.25,0.00013917,2]
[331652869,1720605078538,-557.3,0.00013917,2]
[331652870,1720605078547,-730.77,0.00013917,2]
[331652871,1720605078557,-762.86,0.00013917,2]
[331652872,1720605078567,-500.0,0.00013917,2]
[331652873,1720605078576,-500.0,0.00013917,2]
[331652874,1720605078587,-500.0,0.00013917,2]
[331652875,1720605078598,-1807.11,0.00013917,2]
[331652876,1720605078608,-581.96,0.00013917,2]
[331652877,1720605078617,-500.0,0.00013917,2]
[331652878,1720605078627,-500.0,0.00013917,2]
[331652879,1720605078638,-500.0,0.00013917,2]
[331652880,1720605078648,-568.64,0.00013917,2]
[331652881,1720605078659,-1159.96,0.00013917,2]
[331652882,1720605078669,-590.51,0.00013917,2]
[331652883,1720605078679,-500.0,0.00013917,2]
[331652884,1720605078688,-500.0,0.00013917,2]
[331652885,1720605078697,-500.0,0.00013917,2]
[331652886,1720605078707,-960.56,0.00013917,2]
[331652887,1720605078716,-582.97,0.00013917,2]
[331652888,1720605078725,-508.22,0.00013917,2]
[331652889,1720605078734,-500.0,0.00013917,2]
[331652890,1720605078744,-1099.97,0.00013917,2]
[331652891,1720605078753,-500.0,0.00013917,2]
[331652892,1720605078763,-524.11,0.00013917,2]
[331652893,1720605078772,-500.0,0.00013917,2]
[331652894,1720605078782,-734.05,0.00013917,2]
[331652895,1720605078791,-1046.15,0.00013917,2]
[331652896,1720605078800,-500.0,0.00013917,2]
[331652897,1720605078810,-500.0,0.00013917,2]
[331652898,1720605078819,-830.8,0.00013917,2]
[331652899,1720605078828,-891.96,0.00013917,2]
[331652900,1720605078838,-500.0,0.00013917,2]
[331652901,1720605078847,-500.0,0.00013917,2]
[331652902,1720605078856,-639.04,0.00013917,2]
[331652903,1720605078866,-500.0,0.00013917,2]
[331652904,1720605078875,-500.0,0.00013917,2]
[331652905,1720605078884,-949.3,0.00013917,2]
[331652906,1720605078894,-500.0,0.00013917,2]
[331652907,1720605078903,-791.2,0.00013917,2]
[331652908,1720605078912,-500.0,0.00013917,2]
[331652909,1720605078922,-500.0,0.00013917,2]
[331652910,1720605078931,-500.0,0.00013917,2]
[331652911,1720605078940,-1018.54,0.00013917,2]
[331652912,1720605078950,-757.71,0.00013917,2]
[331652913,1720605078960,-2483.03,0.00013917,2]
[331652914,1720605078969,-840.1,0.00013917,2]
[331652915,1720605078979,-500.0,0.00013917,2]
[331652916,1720605078988,-500.0,0.00013917,2]
[331652917,1720605078998,-756.52,0.00013917,2]
[331652918,1720605079008,-9158.35,0.00013917,2]
[331652919,1720605079018,-575.93,0.00013917,2]
[331652920,1720605079027,-550.3,0.00013917,2]
[331652921,1720605079037,-500.0,0.00013917,2]
[331652922,1720605079047,-605.34,0.00013917,2]
[331652923,1720605079057,-500.0,0.00013917,2]
[331652924,1720605079067,-1726.15,0.00013917,2]
[331652925,1720605079076,-500.0,0.00013917,2]
[331652926,1720605079086,-1106.16,0.00013917,2]
[331652927,1720605079095,-1373.27,0.00013917,2]
[331652928,1720605079106,-500.0,0.00013917,2]
[331652929,1720605079116,-500.0,0.00013917,2]